bitfinex/quotes_BTCUSD_20240719
["timestamp","ask_amount","ask_price","bid_price","bid_amount"]
[1721404937132,0.023,66326.0,66307.0,0.04473146]
[1721404937133,0.15438174,66325.0,66307.0,0.04473146]
[1721404937340,0.15438174,66325.0,66305.0,0.301634]
[1721404937341,0.0641,66341.0,66335.0,0.150748]
[1721404937571,0.0641,66341.0,66340.0,0.452215]
[1721404937774,0.0641,66341.0,66340.0,0.49694646]
[1721404938024,0.0604,66354.0,66353.0,0.150709]
[1721404938234,0.0604,66354.0,66336.0,0.04473146]
[1721404938235,0.23070235,66354.0,66336.0,0.04473146]
[1721404938452,0.23070235,66354.0,66324.0,0.05]
[1721404938453,0.21478174,66354.0,66324.0,0.04473146]
[1721404938665,0.21478174,66354.0,66318.0,0.05]
[1721404938666,0.15438174,66350.0,66321.0,0.04473146]
[1721404938875,0.15438174,66350.0,66326.0,0.150769]
[1721404939081,0.1425,66349.0,66331.0,0.46304871]
[1721404939305,0.1425,66349.0,66327.0,0.150767]
[1721404939510,0.1425,66349.0,66333.0,0.150753]
[1721404939717,0.3336822,66348.0,66321.0,0.04473146]
[1721404940149,0.3336822,66348.0,66319.0,0.04473146]
[1721404940150,0.07717479,66345.0,66319.0,0.04473146]
[1721404940367,0.301466,66343.0,66319.0,0.04473146]
[1721404940592,0.1212,66348.0,66331.0,0.46304871]
[1721404940802,0.1425,66349.0,66348.0,0.15072]
[1721404941009,0.1425,66349.0,66340.0,0.04473146]
[1721404941220,0.1425,66349.0,66341.0,0.153528]
[1721404941426,0.1425,66349.0,66336.0,0.05]
[1721404941630,0.02318168,66355.0,66351.0,0.150713]
[1721404941869,0.02318168,66355.0,66342.0,0.09970025]
[1721404941870,0.002794,66354.0,66347.0,0.301443]
[1721404942121,0.02318168,66355.0,66354.0,0.150706]
[1721404942320,0.02318168,66355.0,66350.0,0.301427]
[1721404942527,0.02318168,66355.0,66340.0,0.02252546]
[1721404942528,0.0759311,66361.0,66345.0,0.301453]
[1721404942743,0.0759311,66361.0,66313.0,0.46304871]
[1721404942744,0.07542413,66356.0,66324.0,0.301547]
[1721404942943,0.07542413,66356.0,66330.0,0.46304871]
[1721404942944,0.07717479,66354.0,66330.0,0.46304871]
[1721404943207,0.07542413,66356.0,66330.0,0.46304871]
[1721404943208,0.002794,66353.0,66348.0,0.46304871]
[1721404943433,0.002794,66355.0,66343.0,0.02252546]
[1721404943649,0.002794,66355.0,66331.0,0.53307353]
[1721404943650,0.002794,66355.0,66335.0,0.02252546]
[1721404943859,0.002794,66355.0,66344.0,0.15438174]
[1721404944076,0.002794,66355.0,66345.0,0.301452]
[1721404944284,0.002794,66355.0,66342.0,0.301466]
[1721404944285,0.01061581,66355.0,66342.0,0.301466]
[1721404944500,0.07542413,66356.0,66338.0,0.301485]
[1721404944501,0.07542413,66356.0,66348.0,1.07756546]
[1721404944720,0.00163063,66364.0,66346.0,0.15438174]
[1721404944721,0.0759725,66362.0,66361.0,0.753452]
[1721404945154,0.0759725,66362.0,66346.0,0.15438174]
[1721404945363,0.00163063,66364.0,66336.0,0.02252546]
[1721404945364,0.0753222,66360.0,66336.0,0.02252546]
[1721404945575,0.0753222,66360.0,66325.0,0.0058]
[1721404945576,0.07519073,66362.0,66345.0,0.02252546]
[1721404945830,0.07519073,66362.0,66347.0,0.02252546]
[1721404946086,0.07519073,66362.0,66361.0,0.15069]
[1721404946324,0.07519073,66362.0,66358.0,0.150696]
[1721404946538,0.07519073,66362.0,66332.0,0.002794]
[1721404946539,0.07577401,66359.0,66335.0,0.02252546]
[1721404946753,0.1,66362.0,66332.0,0.46584271]
[1721404946754,0.07511624,66360.0,66350.0,0.46304871]
[1721404946966,0.1,66362.0,66343.0,0.02252546]
[1721404946967,0.17582527,66361.0,66343.0,0.02252546]
[1721404947170,0.17582527,66361.0,66349.0,0.02252546]
[1721404947586,0.17582527,66361.0,66337.0,0.002794]
[1721404947794,0.17582527,66361.0,66335.0,0.301497]
[1721404947795,0.07577401,66359.0,66341.0,0.02252546]
[1721404948000,0.07577401,66359.0,66342.0,0.15438174]
[1721404948204,0.07577401,66359.0,66343.0,0.30146]
[1721404948383,0.07577401,66359.0,66344.0,0.002794]
[1721404948662,0.17717479,66362.0,66343.0,0.45584174]
[1721404948663,0.07515148,66357.0,66343.0,0.45584174]
[1721404948868,0.07510498,66357.0,66345.0,0.150726]
[1721404949073,0.07510498,66357.0,66348.0,0.150718]
[1721404949286,0.000262,66345.0,66344.0,0.452188]
[1721404949502,0.000262,66345.0,66330.0,0.01777257]
[1721404949713,0.000262,66345.0,66331.0,0.43592574]
[1721404949942,0.000262,66345.0,66332.0,0.281544]
[1721404950151,0.000262,66345.0,66331.0,0.15438174]
[1721404950152,0.000262,66345.0,66333.0,0.12513062]
[1721404950357,0.000262,66345.0,66334.0,0.12513062]
[1721404950577,0.000262,66345.0,66320.0,0.01777257]
[1721404950784,0.000262,66345.0,66329.0,0.02252546]
[1721404950785,0.023262,66345.0,66329.0,0.02252546]
[1721404951015,0.023262,66345.0,66337.0,0.125743]
[1721404951016,0.000262,66345.0,66337.0,0.125743]
[1721404951225,0.000262,66345.0,66330.0,0.58383853]
[1721404951226,0.000262,66345.0,66329.0,0.02252546]
[1721404951440,0.000262,66345.0,66331.0,0.02252546]
[1721404951663,0.000262,66345.0,66323.0,0.07717479]
[1721404951664,0.000262,66345.0,66340.0,0.150738]
[1721404951873,0.000262,66345.0,66341.0,0.12513833]
[1721404952081,0.000262,66345.0,66331.0,0.301515]
[1721404952293,0.000262,66345.0,66328.0,0.01777862]
[1721404952294,0.023262,66345.0,66332.0,0.29647064]
[1721404952528,0.023262,66345.0,66333.0,0.28156999]
[1721404952746,0.023262,66345.0,66329.0,0.4892325]
[1721404952747,0.023262,66345.0,66334.0,0.12793602]
[1721404952964,0.023262,66345.0,66321.0,0.07808779]
[1721404952965,0.000262,66345.0,66344.0,0.452188]
[1721404953202,0.000262,66345.0,66344.0,0.12514202]
[1721404953647,0.000262,66345.0,66344.0,0.27587102]
[1721404953850,0.000262,66345.0,66344.0,0.12514202]
[1721404954700,0.000262,66345.0,66344.0,0.12513839]
[1721404955113,0.000262,66345.0,66344.0,0.12513765]
[1721404955321,0.000262,66345.0,66344.0,0.73373888]
[1721404955527,0.000262,66345.0,66344.0,0.27586665]
[1721404955737,0.000262,66345.0,66344.0,0.12513765]
[1721404956369,0.24721828,66345.0,66344.0,0.10040571]
[1721404956582,0.26038557,66345.0,66344.0,0.10040571]
[1721404956797,0.26038557,66345.0,66328.0,0.01776656]
[1721404956798,0.38338557,66345.0,66328.0,0.01776656]
[1721404957002,0.27738174,66344.0,66329.0,0.15645212]
[1721404957211,0.27738174,66344.0,66322.0,0.301556]
[1721404957212,0.10177576,66343.0,66327.0,0.01776656]
[1721404957385,0.10177576,66343.0,66320.0,0.301565]
[1721404957386,0.02747454,66341.0,66328.0,0.15645453]
[1721404957591,0.15438174,66340.0,66325.0,0.01776656]
[1721404957799,0.1,66339.0,66329.0,0.301523]
[1721404957945,0.123,66342.0,66330.0,0.002794]
[1721404957946,0.17738174,66338.0,66330.0,0.002794]
[1721404958152,0.17738174,66338.0,66314.0,0.07717479]
[1721404958153,0.123,66337.0,66324.0,0.01776656]
[1721404958339,0.01922034,66336.0,66325.0,0.15646119]
[1721404958549,0.123,66337.0,66326.0,0.15646119]
[1721404958550,0.023,66335.0,66326.0,0.15646119]
[1721404958759,0.1,66337.0,66327.0,0.31084206]
[1721404958963,0.1,66337.0,66328.0,0.15925432]
[1721404958964,0.09931866,66337.0,66328.0,0.15925432]
[1721404959186,0.09931866,66337.0,66329.0,0.15646032]
[1721404959407,0.065362,66345.0,66321.0,0.302473]
[1721404959408,0.366816,66345.0,66325.0,0.31930956]
[1721404959673,0.150732,66343.0,66327.0,0.150767]
[1721404959873,0.150732,66343.0,66328.0,0.153558]
[1721404959874,0.15438174,66343.0,66328.0,0.153558]
[1721404960028,0.15438174,66343.0,66329.0,0.301527]
[1721404960218,0.023,66342.0,66330.0,0.002794]
[1721404960428,0.023,66342.0,66330.0,0.30152]
[1721404960601,0.023,66344.0,66331.0,0.002494]
[1721404960965,0.023,66344.0,66337.0,0.01778266]
[1721404961204,0.023,66344.0,66338.0,0.002494]
[1721404961380,0.023,66344.0,66333.0,0.01778266]
[1721404961624,0.023,66344.0,66334.0,0.15892819]
[1721404961831,0.023,66344.0,66334.0,0.002494]
[1721404962078,0.023,66344.0,66330.0,0.04030812]
[1721404962327,0.023,66344.0,66332.0,0.01778266]
[1721404962563,0.065362,66345.0,66344.0,0.452188]
[1721404962564,0.000262,66345.0,66344.0,0.452188]
[1721404962769,0.000262,66345.0,66344.0,0.95073997]
[1721404962989,0.000262,66345.0,66344.0,1.57618343]
[1721404963190,0.08245635,66356.0,66355.0,0.150704]
[1721404963395,0.08245635,66356.0,66355.0,1.26983307]
[1721404963632,0.08245635,66356.0,66355.0,0.95058871]
[1721404963851,0.08245635,66356.0,66355.0,1.25199771]
[1721404964046,0.08245635,66356.0,66355.0,0.49847571]
[1721404964253,0.08245635,66356.0,66355.0,0.34409397]
[1721404964459,0.08245635,66356.0,66355.0,0.15644108]
[1721404964674,0.08245635,66356.0,66355.0,0.15638625]
[1721404964882,0.08245635,66356.0,66350.0,0.18766243]
[1721404964883,0.08245635,66356.0,66351.0,0.20542158]
[1721404965101,0.08245635,66356.0,66348.0,0.02252546]
[1721404965102,0.08245635,66356.0,66355.0,1.00760399]
[1721404965304,0.08245635,66356.0,66355.0,1.32912767]
[1721404965533,0.08245635,66356.0,66355.0,0.64913488]
[1721404965753,0.08245635,66356.0,66344.0,0.00056]
[1721404965974,0.150727,66345.0,66344.0,0.00056]
[1721404966209,0.78110954,66345.0,66344.0,1e-08]
[1721404966427,0.78110954,66345.0,66321.0,0.000913]
[1721404966428,0.18549325,66345.0,66321.0,0.003407]
[1721404966639,0.02747454,66340.0,66322.0,0.150778]
[1721404966855,0.02747454,66340.0,66323.0,0.46554271]
[1721404967059,0.02747454,66340.0,66321.0,0.000913]
[1721404967060,0.173742,66339.0,66322.0,0.150777]
[1721404967269,0.173742,66339.0,66321.0,0.000913]
[1721404967270,0.1,66338.0,66321.0,0.000913]
[1721404967517,0.1,66338.0,66323.0,0.15438174]
[1721404967740,0.1,66338.0,66326.0,0.150769]
[1721404967937,0.150748,66336.0,66327.0,0.002494]
[1721404968157,0.023,66335.0,66325.0,0.150771]
[1721404968357,0.1,66345.0,66331.0,0.22793279]
[1721404968569,0.1,66347.0,66332.0,0.002494]
[1721404968832,0.0003,66362.0,66332.0,0.002494]
[1721404968833,0.301681,66362.0,66345.0,0.07717479]
[1721404969050,1.53091142,66363.0,66347.0,0.0006132]
[1721404969051,1.50343688,66363.0,66347.0,0.0006132]
[1721404969264,1.65412288,66363.0,66348.0,0.002494]
[1721404969472,0.16202564,66355.0,66348.0,0.002494]
[1721404970108,0.07568958,66359.0,66350.0,0.07659558]
[1721404970313,1.50343688,66363.0,66350.0,0.07659558]
[1721404970314,0.07533003,66356.0,66355.0,0.150704]
[1721404970528,0.07536204,66362.0,66347.0,0.0006132]
[1721404970727,0.0003,66361.0,66348.0,0.15438174]
[1721404970929,0.07568958,66359.0,66349.0,0.002494]
[1721404971137,0.07536204,66362.0,66350.0,0.15438174]
[1721404971586,0.07536204,66362.0,66347.0,0.3020582]
[1721404971587,0.07536204,66362.0,66361.0,0.452071]
[1721404971780,0.07536204,66362.0,66361.0,0.90783374]
[1721404971977,0.07536204,66362.0,66361.0,0.60645274]
[1721404972185,0.07536204,66362.0,66361.0,0.30507174]
[1721404972399,0.07536204,66362.0,66361.0,0.15438174]
[1721404972617,0.07536204,66362.0,66361.0,0.90783374]
[1721404972830,0.07536204,66362.0,66361.0,0.9303592]
[1721404973035,0.07536204,66362.0,66361.0,1.65821857]
[1721404973257,1.51061367,66363.0,66361.0,1.65821857]
[1721404973258,0.58574855,66363.0,66362.0,1.07734446]
[1721404973458,0.08540294,66393.0,66376.0,0.150656]
[1721404973459,0.07550665,66382.0,66376.0,0.150656]
[1721404973674,0.07550665,66382.0,66376.0,1.02801623]
[1721404973853,0.07550665,66382.0,66376.0,0.92544432]
[1721404973854,0.08265255,66382.0,66376.0,0.92544432]
[1721404974139,0.08265255,66382.0,66376.0,0.30503774]
[1721404974338,0.08265255,66382.0,66376.0,0.15438174]
[1721404974339,0.0071459,66382.0,66376.0,0.15438174]
[1721404974553,0.0071459,66382.0,66376.0,0.45569474]
[1721404974755,0.0003,66396.0,66376.0,0.9301892]
[1721404974973,0.0003,66396.0,66376.0,1.2315022]
[1721404974974,0.0022682,66377.0,66376.0,1.2315022]
[1721404975186,0.0022682,66377.0,66376.0,1.6521023]
[1721404975440,0.0022682,66377.0,66376.0,1.62957684]
[1721404975645,0.0022682,66377.0,66376.0,0.15438174]
[1721404975864,0.0022682,66377.0,66352.0,0.07717479]
[1721404976074,0.0022682,66377.0,66350.0,0.02252546]
[1721404976075,0.0003,66376.0,66353.0,0.002494]
[1721404976277,0.301341,66370.0,66349.0,0.002494]
[1721404979125,0.0031082,66377.0,66376.0,1.20897674]
[1721404979350,0.000855,66380.0,66379.0,0.02252546]
[1721404979566,0.01145019,66406.0,66379.0,0.02252546]
[1721404979567,0.01145019,66406.0,66383.0,0.02252546]
[1721404979784,0.002,66429.0,66379.0,0.61252981]
[1721404979785,0.006031,66427.0,66426.0,0.451629]
[1721404979989,0.002,66429.0,66416.0,0.02252546]
[1721404980195,0.33152039,66447.0,66419.0,0.05774438]
[1721404980435,0.07564178,66501.0,66449.0,0.05]
[1721404980636,0.07564178,66501.0,66451.0,0.05]
[1721404980858,0.07564178,66501.0,66447.0,0.46304871]
[1721404980859,0.07575614,66502.0,66452.0,0.15717574]
[1721404981114,0.707,66503.0,66466.0,0.46304871]
[1721404981115,0.10673689,66501.0,66466.0,0.46304871]
[1721404981359,0.707,66503.0,66467.0,0.002794]
[1721404981360,0.221206,66502.0,66467.0,0.002794]
[1721404981568,0.19509968,66501.0,66467.0,0.46304871]
[1721404981769,0.19509968,66501.0,66468.0,0.002794]
[1721404981770,0.060296,66501.0,66468.0,0.002794]
[1721404983061,0.0596828,66501.0,66468.0,0.002794]
[1721404983955,0.0596828,66501.0,66469.0,0.46304871]
[1721404984225,0.0596828,66501.0,66455.0,0.07717479]
[1721404984226,0.5596828,66501.0,66470.0,0.002794]
[1721404984455,0.5596828,66501.0,66470.0,0.46304871]
[1721404984870,0.5596828,66501.0,66448.0,0.5402235]
[1721404984871,0.5596828,66501.0,66471.0,0.46304871]
[1721404985074,0.0596828,66501.0,66448.0,0.5402235]
[1721404985299,0.0414828,66501.0,66474.0,0.46304871]
[1721404985507,0.0414828,66501.0,66466.0,0.46304871]
[1721404986331,0.0414828,66501.0,66448.0,0.5402235]
[1721404986332,0.0414828,66501.0,66448.0,0.46304871]
[1721404986540,0.0414828,66501.0,66449.0,0.002794]
[1721404986758,0.0414828,66501.0,66448.0,0.46304871]
[1721404987027,0.06950508,66501.0,66449.0,0.002794]
[1721404987218,0.06950508,66501.0,66465.0,0.46304871]
[1721404987219,0.0519828,66501.0,66465.0,0.46304871]
[1721404987432,0.0519828,66501.0,66430.0,0.46304871]
[1721404987433,0.1519828,66501.0,66430.0,0.46304871]
[1721404987638,0.29567276,66500.0,66469.0,0.46304871]
[1721404987840,0.1519828,66501.0,66448.0,0.46304871]
[1721404987841,0.09066,66469.0,66448.0,0.46304871]
[1721404988061,0.09066,66467.0,66466.0,0.46304871]
[1721404988268,0.300834,66482.0,66466.0,0.46304871]
[1721404988269,0.11670425,66501.0,66466.0,0.07717479]
[1721404988496,2.23953495,66500.0,66467.0,0.002794]
[1721404988702,0.09066,66499.0,66467.0,0.002794]
[1721404988927,2.213,66500.0,66499.0,0.0004967]
[1721404989336,1.414,66500.0,66483.0,0.002794]
[1721404989555,1.414,66500.0,66485.0,0.42497871]
[1721404989784,1.414,66500.0,66440.0,0.05]
[1721404989785,0.093454,66499.0,66429.0,0.05]
[1721404990004,0.09066,66499.0,66465.0,0.46304871]
[1721404990211,1.5732,66500.0,66468.0,0.4075235]
[1721404990212,0.02882234,66498.0,66468.0,0.4075235]
[1721404990462,0.42782234,66497.0,66468.0,0.33034871]
[1721404990726,0.42782234,66497.0,66457.0,0.07717479]
[1721404990727,0.02882234,66496.0,66457.0,0.07717479]
[1721404990924,0.43168891,66495.0,66466.0,0.46304871]
[1721404991136,0.09066,66481.0,66449.0,0.07717479]
[1721404991343,0.09066,66481.0,66465.0,0.46304871]
[1721404991344,0.09066,66479.0,66465.0,0.46304871]
[1721404991556,0.01147962,66478.0,66471.0,0.07717479]
[1721404991796,1.61848721,66480.0,66478.0,0.07717479]
[1721404991797,0.707,66480.0,66478.0,0.07717479]
[1721404991991,0.707,66480.0,66479.0,0.07717479]
[1721404992175,0.1,66482.0,66479.0,0.14217479]
[1721404992422,0.07541922,66526.0,66480.0,0.15717574]
[1721404992628,0.07541922,66526.0,66500.0,0.07717479]
[1721404992840,0.09066,66524.0,66500.0,0.07717479]
[1721404993086,0.708156,66514.0,66440.0,0.06530267]
[1721404993255,0.708156,66514.0,66434.0,0.1592]
[1721404993500,0.708156,66514.0,66425.0,0.1]
[1721404993501,0.708156,66514.0,66422.0,0.12663679]
[1721404993502,0.10441574,66448.0,66422.0,0.12663679]
[1721404993720,0.10441574,66448.0,66411.0,0.14893101]
[1721404993721,0.10441574,66448.0,66411.0,0.002]
[1721404993722,0.07526955,66425.0,66411.0,0.002]
[1721404993934,0.2,66441.0,66378.0,0.07627479]
[1721404993935,0.09066,66414.0,66378.0,0.07627479]
[1721404994155,0.09066,66408.0,66378.0,0.07627479]
[1721404994388,0.1,66423.0,66390.0,0.07717479]
[1721404994624,0.1,66412.0,66407.0,0.07717479]
[1721404994831,0.46304871,66421.0,66407.0,0.07717479]
[1721404995041,0.15630487,66420.0,66407.0,0.07717479]
[1721404995261,0.1,66420.0,66407.0,0.07717479]
[1721404995471,0.09066,66431.0,66414.0,0.07717479]
[1721404995680,0.46304871,66428.0,66422.0,0.07717479]
[1721404995892,0.08067087,66427.0,66422.0,0.07717479]
[1721404996100,0.03875813,66430.0,66422.0,0.07717479]
[1721404996310,0.03875813,66430.0,66407.0,0.07717479]
[1721404996311,0.01575813,66430.0,66407.0,0.07717479]
[1721404996515,0.01575813,66430.0,66414.0,0.07717479]
[1721404996720,0.01575813,66430.0,66407.0,0.07717479]
[1721404996721,0.023,66429.0,66407.0,0.07717479]
[1721404996944,0.023,66429.0,66422.0,0.07717479]
[1721404997167,0.01575813,66430.0,66422.0,0.07717479]
[1721404997382,0.06654418,66475.0,66422.0,0.07717479]
[1721404997383,0.04436278,66480.0,66429.0,0.07717479]
[1721404997596,0.00708676,66459.0,66442.0,0.07717479]
[1721404997812,1.80304871,66458.0,66429.0,0.07717479]
[1721404998021,1.80304871,66458.0,66422.0,0.07717479]
[1721404998022,0.15332721,66457.0,66422.0,0.07717479]
[1721404998240,0.01226257,66456.0,66422.0,0.07717479]
[1721404998458,0.01193383,66455.0,66422.0,0.07717479]
[1721404998675,0.46304871,66423.0,66378.0,0.01771369]
[1721404998884,0.46304871,66423.0,66383.0,0.46304871]
[1721404998885,1.5138755,66422.0,66383.0,0.46304871]
[1721404999092,0.0118815,66421.0,66400.0,0.46304871]
[1721404999301,0.0118815,66421.0,66383.0,0.46304871]
[1721404999302,0.16174656,66420.0,66383.0,0.46304871]
[1721404999586,0.15895256,66418.0,66383.0,0.46304871]
[1721404999806,0.102794,66417.0,66362.0,0.07717479]
[1721405000019,0.01222057,66416.0,66362.0,0.07717479]
[1721405000202,0.002794,66415.0,66362.0,0.07717479]
[1721405000331,0.02363029,66406.0,66362.0,0.07717479]
[1721405000531,1.109794,66405.0,66362.0,0.07717479]
[1721405000771,0.1,66404.0,66362.0,0.07717479]
[1721405001104,0.1,66404.0,66381.0,0.07717479]
[1721405001105,0.002794,66403.0,66381.0,0.07717479]
[1721405001512,0.002794,66403.0,66388.0,0.07717479]
[1721405001720,0.002794,66403.0,66381.0,0.07717479]
[1721405002147,0.002794,66403.0,66388.0,0.07717479]
[1721405002883,0.060362,66402.0,66388.0,0.07717479]
[1721405003106,0.002794,66401.0,66396.0,0.07717479]
[1721405003310,0.002794,66401.0,66388.0,0.07717479]
[1721405004090,0.002794,66401.0,66395.0,0.07717479]
[1721405004291,0.002794,66401.0,66388.0,0.07717479]
[1721405004547,0.002794,66401.0,66374.0,0.07717479]
[1721405004548,0.01211639,66400.0,66374.0,0.07717479]
[1721405004729,0.01211639,66400.0,66351.0,0.002]
[1721405004730,0.46304871,66391.0,66351.0,0.002]
[1721405004936,0.00262561,66387.0,66351.0,0.002]
[1721405005135,0.00262561,66387.0,66323.0,0.07717479]
[1721405005136,1.53009631,66386.0,66323.0,0.07717479]
[1721405005364,1.53009631,66386.0,66323.0,0.02543621]
[1721405005365,0.1592,66377.0,66323.0,0.02543621]
[1721405005561,0.04440388,66373.0,66322.0,0.000924]
[1721405005760,0.44755481,66372.0,66322.0,0.000924]
[1721405006159,0.59011603,66371.0,66322.0,0.000924]
[1721405006363,0.002794,66370.0,66322.0,0.000924]
[1721405006592,0.0145113,66323.0,66322.0,0.000924]
[1721405007009,0.05095671,66323.0,66322.0,0.000924]
[1721405007215,0.102794,66324.0,66322.0,0.000924]
[1721405007444,0.002794,66324.0,66322.0,0.000924]
[1721405007650,0.04447586,66393.0,66322.0,0.000924]
[1721405007651,0.002794,66368.0,66322.0,0.000924]
[1721405007861,0.01468169,66337.0,66336.0,0.07717479]
[1721405008480,0.01468169,66337.0,66336.0,0.07217479]
[1721405008692,0.002794,66342.0,66329.0,0.07717479]
[1721405008693,0.0002593,66342.0,66329.0,0.07717479]
[1721405008908,0.08508487,66341.0,66322.0,0.000924]
[1721405009117,0.0002593,66340.0,66327.0,0.07717479]
[1721405009325,0.0002593,66340.0,66334.0,0.07533779]
[1721405009756,0.0002593,66340.0,66322.0,0.000924]
[1721405009986,0.0002593,66340.0,66309.0,0.14057479]
[1721405009987,0.0002593,66340.0,66319.0,0.03429962]
[1721405010197,0.0002593,66340.0,66307.0,0.006906]
[1721405010198,0.089495,66339.0,66307.0,0.006906]
[1721405010400,0.0002593,66338.0,66317.0,0.46304871]
[1721405010596,0.0002593,66338.0,66318.0,0.0025347]
[1721405010816,1.34,66337.0,66319.0,0.07717479]
[1721405011024,0.18787887,66336.0,66319.0,0.07717479]
[1721405011226,0.18787887,66336.0,66312.0,0.05653428]
[1721405011435,0.18787887,66336.0,66307.0,0.08408079]
[1721405011646,0.18787887,66336.0,66307.0,0.006906]
[1721405012060,0.97544648,66335.0,66307.0,0.006906]
[1721405012268,0.15910913,66334.0,66309.0,0.07717479]
[1721405012471,0.15910913,66334.0,66307.0,0.006906]
[1721405012681,0.15910913,66334.0,66313.0,0.46304871]
[1721405012884,0.15910913,66334.0,66307.0,0.006906]
[1721405012885,0.03421972,66333.0,66307.0,0.006906]
[1721405013106,0.08787887,66332.0,66321.0,0.07717479]
[1721405013305,0.002794,66332.0,66331.0,0.07717479]
[1721405013516,1.34,66337.0,66331.0,0.07717479]
[1721405013923,1.34,66337.0,66332.0,0.07717479]
[1721405014137,1.34,66337.0,66321.0,0.07717479]
[1721405014335,1.34,66337.0,66314.0,0.07717479]
[1721405014336,0.002794,66336.0,66314.0,0.07717479]
[1721405014485,0.03438014,66336.0,66315.0,0.07717479]
[1721405014688,0.4,66335.0,66315.0,0.07717479]
[1721405014890,0.002794,66334.0,66322.0,0.07717479]
[1721405015267,0.102794,66334.0,66322.0,0.07717479]
[1721405015471,0.102794,66334.0,66329.0,0.07717479]
[1721405015676,0.00900501,66342.0,66330.0,0.23628174]
[1721405015876,0.060362,66402.0,66341.0,0.07717479]
[1721405016102,0.46304871,66347.0,66341.0,0.07717479]
[1721405016277,0.46304871,66364.0,66341.0,0.07717479]
[1721405016477,1.17004871,66364.0,66348.0,0.07717479]
[1721405016684,0.707,66364.0,66356.0,0.07717479]
[1721405017058,0.707,66364.0,66348.0,0.07717479]
[1721405017473,0.707,66364.0,66349.0,0.07717479]
[1721405017885,0.707,66364.0,66356.0,0.07717479]
[1721405018115,0.707,66364.0,66363.0,0.07717479]
[1721405018387,0.371,66372.0,66356.0,0.07717479]
[1721405018388,0.01577035,66386.0,66356.0,0.07717479]
[1721405018559,0.01577035,66386.0,66349.0,0.13987479]
[1721405018560,1.34,66376.0,66349.0,0.13987479]
[1721405018775,1.34,66376.0,66364.0,0.07717479]
[1721405019242,1.34,66376.0,66342.0,0.05]
[1721405019437,1.34,66376.0,66340.0,0.150737]
[1721405019438,1.34,66376.0,66343.0,0.46304871]
[1721405019584,1.34,66376.0,66340.0,0.05]
[1721405019585,0.46304871,66373.0,66339.0,0.0627]
[1721405019812,0.371,66375.0,66342.0,0.46304871]
[1721405019813,0.09468182,66372.0,66342.0,0.46304871]
[1721405019974,2.11,66371.0,66331.0,0.002794]
[1721405020175,0.04671818,66370.0,66350.0,0.07717479]
[1721405020376,0.14671818,66370.0,66358.0,0.07717479]
[1721405020576,0.14671818,66370.0,66350.0,0.06717479]
[1721405021226,0.14671818,66370.0,66364.0,0.07717479]
[1721405021378,0.00884047,66376.0,66364.0,0.07717479]
[1721405021597,0.707,66387.0,66371.0,0.07717479]
[1721405021797,0.46304871,66385.0,66371.0,0.07717479]
[1721405021997,0.0707,66386.0,66364.0,0.07717479]
[1721405022204,0.0707,66386.0,66380.0,0.07717479]
[1721405022411,0.0707,66386.0,66373.0,0.07717479]
[1721405022615,0.0707,66386.0,66374.0,0.07717479]
[1721405022819,0.0707,66385.0,66364.0,0.07717479]
[1721405023450,0.0707,66385.0,66350.0,0.06717479]
[1721405023646,0.0707,66385.0,66351.0,0.07717479]
[1721405023647,0.09066,66383.0,66351.0,0.07717479]
[1721405023808,0.09066,66383.0,66374.0,0.46304871]
[1721405024009,0.707,66387.0,66365.0,0.07717479]
[1721405024010,0.707,66395.0,66382.0,0.07717479]
[1721405024235,0.060362,66402.0,66389.0,0.07717479]
[1721405024462,0.060362,66402.0,66398.0,0.07717479]
[1721405025052,0.707,66415.0,66401.0,0.05]
[1721405025237,0.01576364,66418.0,66398.0,0.07717479]
[1721405025238,0.00888994,66414.0,66405.0,0.07717479]
[1721405025521,0.060339,66408.0,66405.0,0.07717479]
[1721405025722,0.002,66429.0,66405.0,0.07717479]
[1721405025723,0.00866382,66419.0,66405.0,0.07717479]
[1721405026059,0.06033,66415.0,66407.0,0.05]
[1721405026220,0.00880747,66423.0,66408.0,0.05]
[1721405026427,0.00880747,66423.0,66400.0,0.301203]
[1721405026428,0.707,66422.0,66394.0,0.150615]
[1721405026628,0.707,66422.0,66372.0,0.301329]
[1721405026629,0.707,66422.0,66388.0,0.05]
[1721405026831,0.707,66422.0,66344.0,0.18752588]
[1721405026832,0.633,66417.0,66373.0,0.05]
[1721405027031,0.633,66417.0,66331.0,0.002794]
[1721405027032,0.707,66408.0,66389.0,0.07717479]
[1721405027236,0.0717807,66407.0,66383.0,0.0638]
[1721405027445,0.0717807,66407.0,66389.0,0.07717479]
[1721405027648,0.0717807,66407.0,66398.0,0.07717479]
[1721405027847,0.0717807,66407.0,66389.0,0.07717479]
[1721405027848,0.0717807,66407.0,66383.0,0.0638]
[1721405028049,0.0696193,66406.0,66384.0,0.46304871]
[1721405028258,0.0696193,66406.0,66374.0,0.05]
[1721405028259,0.1696193,66406.0,66374.0,0.05]
[1721405028465,0.1696193,66406.0,66349.0,0.31915298]
[1721405028466,0.1696193,66406.0,66373.0,0.0637]
[1721405028691,0.5686193,66406.0,66373.0,0.0637]
[1721405028909,0.0717807,66405.0,66373.0,0.0637]
[1721405029104,0.0645,66404.0,66374.0,0.07717479]
[1721405029299,0.0645,66404.0,66381.0,0.07717479]
[1721405029300,0.633,66403.0,66381.0,0.07717479]
[1721405029501,0.1,66402.0,66381.0,0.07717479]
[1721405029788,0.0768,66401.0,66366.0,0.46304871]
[1721405029975,0.1464193,66401.0,66366.0,0.46304871]
[1721405030202,0.1,66400.0,66366.0,0.46304871]
[1721405030338,0.1,66400.0,66364.0,0.0637]
[1721405030339,0.111403,66400.0,66364.0,0.0637]
[1721405030541,0.111403,66400.0,66365.0,0.46304871]
[1721405030542,0.0645,66398.0,66365.0,0.46304871]
[1721405030745,0.0831837,66397.0,66365.0,0.46304871]
[1721405030946,0.011403,66396.0,66365.0,0.46304871]
[1721405031193,1.0,66390.0,66365.0,0.46304871]
[1721405031387,1.0,66390.0,66346.0,0.0637]
[1721405031388,2.21,66389.0,66346.0,0.0637]
[1721405031652,2.21,66389.0,66362.0,0.46304871]
[1721405031852,0.0696193,66388.0,66358.0,0.07717479]
[1721405032060,0.0696193,66388.0,66360.0,0.46304871]
[1721405032268,0.0696193,66388.0,66358.0,0.07717479]
[1721405032523,0.0696193,66388.0,66372.0,0.07717479]